bitfinex/quotes_ETHUSD_20250425
["timestamp","ask_amount","ask_price","bid_price","bid_amount"]
[1745577700714,6.7795,1774.7,1774.1,11.50839705]
[1745577700902,0.7795,1774.4,1774.0,0.413709]
[1745577701221,6.0,1774.3,1774.0,0.413709]
[1745577702988,6.0,1774.3,1774.0,6.05059155]
[1745577703192,6.0,1774.3,1774.1,0.60505915]
[1745577704107,6.0,1774.3,1774.1,6.24171012]
[1745577704727,6.0,1774.3,1774.1,0.60505915]
[1745577705733,3.0,1774.3,1774.1,0.60505915]
[1745577706517,3.0,1774.3,1774.0,0.413709]
[1745577707017,0.10644231,1774.2,1774.0,0.413709]
[1745577707598,0.10644231,1774.2,1774.1,5.63666084]
[1745577707818,6.7795,1774.4,1774.1,5.63666084]
[1745577708333,0.10697252,1774.3,1774.1,5.63666084]
[1745577708514,0.10697252,1774.3,1774.2,0.56366608]
[1745577709181,0.10697252,1774.3,1774.2,6.20000922]
[1745577711830,3.0,1774.6,1774.3,5.63579174]
[1745577713025,3.0,1774.6,1774.2,0.56366608]
[1745577713192,3.0,1774.6,1774.1,6.406717]
[1745577713193,3.0,1774.6,1774.1,12.043199]
[1745577713699,3.0,1774.6,1774.2,5.63630843]
[1745577715660,3.0,1774.6,1774.1,6.4066503]
[1745577715960,3.0,1774.6,1774.2,5.63624821]
[1745577717352,3.0,1774.6,1774.2,11.27240213]
[1745577717570,3.0,1774.6,1774.3,1.12724021]
[1745577718427,3.0,1774.6,1774.3,6.76326091]
[1745577719756,6.8246,1774.7,1774.4,5.63557191]
[1745577719938,6.0,1774.7,1774.4,6.38756667]
[1745577720120,6.0,1774.7,1774.5,5.63528734]
[1745577720319,6.0,1774.7,1774.5,1.2022854]
[1745577720515,6.0,1774.7,1774.5,6.8375207]
[1745577721133,6.0,1774.7,1774.5,1.2022854]
[1745577721544,6.0,1774.7,1774.4,0.752]
[1745577721725,6.0,1774.7,1774.3,1.12724021]
[1745577722050,0.8608958,1774.6,1774.3,1.12724021]
[1745577722626,9.49619051,1774.6,1774.0,1.235309]
[1745577722951,3.0,1774.4,1774.0,6.05063933]
[1745577723150,0.7791,1774.3,1774.1,5.63663883]
[1745577723350,6.88811137,1774.5,1774.3,5.63592475]
[1745577723551,6.7791,1774.5,1774.2,5.63614348]
[1745577723758,6.7791,1774.5,1774.3,0.56361435]
[1745577724653,6.7791,1774.5,1774.1,12.0457826]
[1745577724819,6.7791,1774.5,1774.2,5.63627645]
[1745577725947,6.7791,1774.5,1774.1,0.7728]
[1745577726148,0.8172,1774.3,1774.0,0.413709]
[1745577726352,0.8172,1774.2,1774.0,0.413709]
[1745577726557,9.0,1774.1,1774.0,0.413709]
[1745577731365,9.7724,1774.1,1774.0,0.413709]
[1745577732057,9.89856627,1774.1,1774.0,0.413709]
[1745577734162,15.53522711,1774.1,1774.0,0.413709]
[1745577734330,17.64537719,1774.1,1774.0,0.413709]
[1745577736381,17.92190968,1774.1,1774.0,0.413709]
[1745577739365,17.64537719,1774.1,1774.0,0.413709]
[1745577739561,18.40832404,1774.1,1774.0,0.413709]
[1745577741391,18.69109031,1774.1,1774.0,0.413709]
[1745577742281,5.63729832,1773.9,1773.4,0.7774]
[1745577742450,3.0,1773.7,1773.4,0.7774]
[1745577742746,3.0,1773.7,1773.4,1.41905887]
[1745577743761,6.0,1773.8,1773.5,5.63846028]
[1745577744093,6.0,1774.1,1773.9,5.63700182]
[1745577744277,6.0,1774.3,1774.0,0.7631]
[1745577744490,6.0,1774.3,1774.1,5.63655431]
[1745577744676,6.0,1774.3,1774.1,1.27994417]
[1745577745053,6.0,1774.3,1774.0,6.3998919]
[1745577745455,6.0,1774.3,1774.0,0.7631]
[1745577745914,6.0,1774.3,1774.0,6.39998257]
[1745577746197,6.0,1774.3,1774.0,0.7631]
[1745577746380,6.0,1774.3,1774.0,6.40001637]
[1745577746580,6.0,1774.3,1774.1,0.64000164]
[1745577746954,6.0,1774.3,1774.0,0.7631]
[1745577749801,3.0,1774.3,1774.0,0.7631]
[1745577750799,3.7828,1774.3,1773.8,5.8541]
[1745577750969,3.7828,1774.3,1773.8,11.49168731]
[1745577751175,0.7828,1774.3,1773.8,11.49168731]
[1745577751369,1.54574685,1774.3,1773.5,5.63843551]
[1745577751574,0.8017,1774.0,1773.4,5.8749]
[1745577751776,0.8017,1774.0,1773.4,11.51355147]
[1745577752088,3.0,1774.3,1773.6,5.63807233]
[1745577752300,3.0,1774.3,1773.7,0.7929]
[1745577752507,0.8017,1774.0,1773.5,6.43146167]
[1745577752882,0.8017,1774.0,1773.5,0.7929]
[1745577753078,3.0,1773.9,1773.5,0.7929]
[1745577753388,0.8109,1773.7,1773.3,5.63909576]
[1745577753593,0.8109,1773.7,1773.3,6.28056534]
[1745577753890,0.8109,1773.9,1773.3,6.28060467]
[1745577754215,0.8109,1773.9,1773.3,0.64146958]
[1745577754216,3.0,1773.8,1773.3,0.64146958]
[1745577754387,3.76294685,1773.8,1773.2,0.7756]
[1745577755028,9.40058168,1773.8,1773.2,0.7756]
[1745577755189,9.40058168,1773.8,1773.2,6.41502407]
[1745577755190,0.76294685,1773.8,1773.2,6.41502407]
[1745577755389,3.8109,1773.9,1773.2,6.41502407]
[1745577755685,5.38159562,1773.9,1773.3,0.64150241]
[1745577756207,11.01890558,1773.9,1773.3,0.64150241]
[1745577756413,5.38159562,1773.9,1773.3,0.64150241]
[1745577756610,3.8109,1773.9,1773.3,6.28054101]
[1745577757116,0.41397242,1774.0,1773.5,0.7501]
[1745577757320,5.8845,1774.1,1773.5,6.38847859]
[1745577757516,0.8015,1774.1,1773.5,12.02681862]
[1745577757726,3.8015,1774.1,1773.6,1.20268186]
[1745577757900,0.8216,1774.3,1773.8,6.4530598]
[1745577758102,5.5151099,1774.5,1774.0,5.63686557]
[1745577758103,6.3367099,1774.5,1774.0,5.63686557]
[1745577758439,6.3367099,1774.5,1774.1,5.63656185]
[1745577758595,6.3367099,1774.5,1774.1,6.76390459]
[1745577758800,6.3367099,1774.5,1774.1,1.12734274]
[1745577759807,1.2537099,1774.5,1774.1,1.12734274]
[1745577760008,1.2537099,1774.5,1774.2,5.63625052]
[1745577760009,0.4321099,1774.5,1774.2,5.63625052]
[1745577760209,0.8005,1774.7,1774.2,5.63614767]
[1745577760608,0.8005,1774.7,1774.2,5.63614129]
[1745577760931,5.84494685,1774.9,1774.3,5.63597307]
[1745577761130,6.61214685,1774.9,1774.3,5.63597307]
[1745577761327,7.07380781,1774.9,1774.3,5.63589217]
[1745577761515,5.8492,1774.9,1774.3,5.63589217]
[1745577761726,0.7672,1774.9,1774.4,0.8002]
[1745577761911,0.7672,1774.9,1774.5,5.63519182]
[1745577762942,3.0,1775.0,1774.4,6.43569563]
[1745577763620,3.41532253,1775.0,1774.4,6.43569446]
[1745577763811,3.41532253,1775.0,1774.4,7.64285403]
[1745577764012,3.41532253,1775.0,1774.4,2.00735957]
[1745577764211,3.41532253,1775.0,1774.4,7.64297275]
[1745577765257,3.41532253,1775.0,1774.4,7.64292158]
[1745577765458,0.41532253,1775.0,1774.4,2.00735957]
[1745577765623,3.7643,1775.1,1774.5,5.63523949]
[1745577766115,3.7643,1775.1,1774.4,6.43574262]
[1745577766654,3.7643,1775.1,1774.5,5.63534283]
[1745577766870,3.7643,1775.1,1774.5,5.6352983]
[1745577767146,4.17962816,1775.1,1774.5,5.63523128]
[1745577767362,4.17962816,1775.1,1774.6,0.56352313]
[1745577767860,4.17962816,1775.1,1774.6,6.1985454]
[1745577768248,4.17962816,1775.1,1774.6,0.56352313]
[1745577768838,4.17962816,1775.1,1774.6,6.19850203]
[1745577769045,4.17962816,1775.1,1774.6,0.56352313]
[1745577769262,4.17962816,1775.1,1774.6,6.1984378]
[1745577769431,4.17962816,1775.1,1774.7,0.61984378]
[1745577770665,4.17962816,1775.1,1774.6,6.19844083]
[1745577771267,4.17962816,1775.1,1774.6,11.83337616]
[1745577771456,4.17962816,1775.1,1774.6,6.19844083]
[1745577771763,4.17962816,1775.1,1774.6,0.56352313]
[1745577771963,4.17962816,1775.1,1774.6,5.63495271]
[1745577772571,4.17962816,1775.1,1774.5,5.63519541]
[1745577772773,4.17962816,1775.1,1774.5,11.27036084]
[1745577773073,4.17962816,1775.1,1774.6,5.63497139]
[1745577773375,4.17962816,1775.1,1774.6,5.63490339]
[1745577773553,4.17962816,1775.1,1774.7,0.56349034]
[1745577775164,1.17962816,1775.1,1774.7,6.19806883]
[1745577775368,0.7833,1775.3,1774.8,0.7539]
[1745577775535,21.993,1775.5,1774.8,0.7539]
[1745577775536,0.7833,1775.5,1775.1,5.63324499]
[1745577775874,0.7833,1775.5,1775.2,6.19622439]
[1745577776079,0.7979,1775.7,1775.2,6.97952439]
[1745577776233,0.7979,1775.7,1775.2,12.61251156]
[1745577776433,0.12657471,1775.6,1775.2,12.61251156]
[1745577776809,0.7979,1775.7,1775.3,5.63284664]
[1745577777005,0.12692379,1775.6,1775.3,5.63284664]
[1745577777142,1.22249129,1775.7,1775.3,6.89394322]
[1745577777372,0.11212953,1775.6,1775.3,12.52659123]
[1745577777527,0.11212953,1775.6,1775.3,6.89388511]
[1745577777735,0.11174564,1775.5,1775.3,6.89388511]
[1745577777935,3.81294685,1775.9,1775.3,6.89388511]
[1745577777936,0.05,1775.9,1775.4,5.63253351]
[1745577778147,0.05,1775.9,1775.5,6.195431]
[1745577778544,0.05,1775.9,1775.5,12.62564295]
[1745577778834,0.05,1775.9,1775.6,5.63182712]
[1745577779041,0.05,1775.9,1775.6,5.6316704]
[1745577779252,0.05,1775.9,1775.5,6.99350825]
[1745577779253,0.47106108,1775.9,1775.7,5.63156253]
[1745577779471,0.47106108,1775.9,1775.8,0.56315625]
[1745577780078,0.47106108,1775.9,1775.8,6.19442103]
[1745577780273,0.05,1775.9,1775.8,6.95372103]
[1745577781776,0.05,1775.9,1775.8,1.32245625]
[1745577782074,0.05,1775.9,1775.5,11.27124501]
[1745577782288,0.05,1775.9,1775.6,5.63188694]
[1745577782437,0.05,1775.9,1775.5,11.27124501]
[1745577782632,0.05,1775.9,1775.5,5.63925335]
[1745577783065,0.05,1775.9,1775.6,5.63189571]
[1745577783269,0.05,1775.9,1775.7,0.56318957]
[1745577783581,0.05,1775.9,1775.5,11.27126029]
[1745577783873,0.05,1775.9,1775.5,16.90324421]
[1745577784079,0.05,1775.9,1775.6,5.63171239]
[1745577784249,0.05,1775.9,1775.7,5.63143843]
[1745577784456,0.05,1775.9,1775.8,5.63126478]
[1745577784650,0.05,1775.9,1775.8,6.7575351]
[1745577784856,0.05,1775.9,1775.8,1.92437032]
[1745577785084,0.05,1775.9,1775.8,7.5556351]
[1745577785683,0.05,1775.9,1775.8,1.92437032]
[1745577786385,0.05,1775.9,1775.8,7.5556351]
[1745577787383,0.05,1775.9,1775.8,1.92437032]
[1745577788087,0.05,1775.9,1775.8,7.5556351]
[1745577791107,4.58014685,1775.9,1774.5,0.8194]
[1745577791275,1.53014685,1775.2,1774.5,0.8194]
[1745577791473,7.16345975,1775.2,1774.5,0.8194]
[1745577791804,7.16340569,1775.2,1774.5,0.8194]
[1745577792004,4.95546575,1775.2,1774.5,0.8194]
[1745577792175,10.58881978,1775.2,1774.5,5.8944]
[1745577792608,10.58881978,1775.2,1774.6,0.58944]
[1745577792609,0.76294685,1775.0,1774.6,0.58944]
[1745577792917,0.8288,1774.9,1774.5,5.075]
[1745577793085,0.76294685,1774.8,1774.5,5.075]
[1745577793415,0.76294685,1774.8,1774.1,5.63648185]
[1745577793416,6.39744429,1774.8,1774.1,5.63648185]
[1745577793610,0.76294685,1774.6,1774.0,5.8457]
[1745577793783,3.0,1774.7,1774.1,0.58457]
[1745577793971,3.0,1774.7,1774.1,6.22107166]
[1745577794790,0.76294685,1774.8,1774.1,0.58457]
[1745577795087,3.0,1774.7,1774.1,0.58457]
[1745577795281,8.63477026,1774.7,1774.1,0.58457]
[1745577795507,3.0,1774.7,1774.1,6.22119332]
[1745577795686,3.0,1774.7,1774.2,0.62211933]
[1745577796510,3.0,1774.7,1774.2,6.25841802]
[1745577796675,3.8288,1774.9,1774.2,6.25841802]
[1745577796874,9.46302934,1774.9,1774.2,6.25841802]
[1745577797074,3.0,1774.7,1774.2,0.62211933]
[1745577797306,8.63486091,1774.7,1774.1,0.58457]
[1745577798781,14.26987998,1774.7,1774.1,0.58457]
[1745577798982,8.63486091,1774.7,1774.1,0.58457]
[1745577799515,3.0,1774.7,1774.1,0.58457]
[1745577799808,4.11550371,1774.9,1774.1,0.58457]
[1745577800105,6.04616049,1774.8,1774.1,0.58457]
[1745577800306,3.0,1774.6,1774.1,0.58457]
[1745577800481,9.04618754,1774.8,1774.1,0.58457]
[1745577801110,3.0,1774.6,1774.1,0.58457]
[1745577801498,3.0,1774.6,1774.1,6.22120937]
[1745577801673,3.0,1774.6,1774.1,0.58457]
[1745577802103,3.0,1774.6,1774.1,6.22121625]
[1745577802680,3.0,1774.6,1774.1,6.22121841]
[1745577804603,3.42307886,1774.6,1774.1,6.22121841]
[1745577806216,6.04618754,1774.8,1774.1,6.22121841]
[1745577806217,0.8288,1774.9,1774.5,5.63539025]
[1745577806982,0.8288,1774.9,1774.4,6.42741582]
[1745577807406,0.8288,1774.9,1774.4,6.42739793]
[1745577807583,0.8288,1774.9,1774.5,5.63520146]
[1745577807783,0.8288,1774.9,1774.5,6.8414614]
[1745577808224,1.24401993,1774.9,1774.5,6.8414614]
[1745577809020,1.24401993,1774.9,1774.5,1.20625994]
[1745577809444,3.0,1774.8,1774.2,1.42452184]
[1745577809910,3.0,1774.8,1774.2,7.0607701]
[1745577810703,3.0,1774.8,1774.3,5.63591122]
[1745577810888,3.0,1774.8,1774.2,7.06067213]
[1745577812691,3.0,1774.8,1774.1,6.22110421]
[1745577812692,12.41104256,1774.7,1774.1,0.58457]
[1745577812891,6.0,1774.6,1774.1,11.85757326]
[1745577813093,6.0,1774.6,1774.1,11.8575068]
[1745577813327,6.0,1774.6,1774.2,5.63625169]
[1745577813521,6.0,1774.6,1774.2,6.8219775]
[1745577814235,6.0,1774.6,1774.2,6.82189771]
[1745577814437,6.0,1774.6,1774.3,5.63601371]
[1745577814961,6.0,1774.6,1774.2,6.82184992]
[1745577815341,6.0,1774.6,1774.2,12.45798661]
[1745577815637,6.0,1774.6,1774.3,1.24579866]
[1745577816342,6.0,1774.6,1774.2,5.63612411]
[1745577817339,6.7762,1774.7,1774.3,5.63600718]
[1745577817542,6.7762,1774.7,1774.3,6.39560718]
[1745577818349,6.7762,1774.7,1774.3,0.7596]
[1745577819136,6.7762,1774.7,1774.1,6.22103]
[1745577819437,6.7762,1774.7,1774.2,0.622103]
[1745577820240,3.0,1774.6,1774.1,1.40227]
[1745577820442,3.0,1774.6,1774.1,12.6752179]
[1745577820639,3.0,1774.6,1774.1,7.03876263]
[1745577820828,3.0,1774.6,1774.2,5.63619374]
[1745577821139,6.7762,1774.7,1774.2,5.63613522]
[1745577821329,6.7762,1774.7,1774.3,6.19945814]
[1745577821710,6.7762,1774.7,1774.3,11.83526345]
[1745577822248,6.0,1774.7,1774.3,11.83522464]
[1745577822405,6.0,1774.7,1774.5,6.45258813]
[1745577822610,1.20121993,1774.9,1774.6,5.6349261]
[1745577822611,3.41521993,1774.9,1774.6,5.6349261]
[1745577822822,0.41521993,1774.9,1774.6,6.84367752]
[1745577823024,6.0,1775.0,1774.6,6.84367752]
[1745577823221,3.786,1775.1,1774.6,12.47853495]
[1745577823222,0.786,1775.1,1774.6,12.47853495]
[1745577823418,0.786,1775.1,1774.6,6.84360885]
[1745577823608,0.786,1775.1,1774.7,5.63473802]
[1745577823808,0.786,1775.1,1774.8,0.5634738]
[1745577825241,1.2131031,1775.1,1774.6,6.84361809]
[1745577826734,1.2131031,1775.1,1774.6,12.47848733]
[1745577827255,1.2131031,1775.1,1774.6,12.47855414]
[1745577827459,1.2131031,1775.1,1774.6,6.843611]
[1745577827663,0.4271031,1775.1,1774.7,5.63475329]
[1745577827961,0.7624583,1775.2,1774.8,0.56347533]
[1745577829049,0.7624583,1775.2,1774.6,5.63487702]
[1745577829840,0.7624583,1775.2,1774.6,11.26973749]
[1745577830157,0.7624583,1775.2,1774.6,11.26971987]
[1745577830463,1.18651851,1775.2,1774.6,5.6348594]
[1745577831930,1.5225583,1775.0,1774.5,0.8173]
[1745577832129,1.5225583,1775.0,1774.4,5.075]
[1745577832466,0.7601,1775.0,1774.5,5.63535501]
[1745577832628,0.7601,1775.0,1774.4,11.9149158]
[1745577832965,0.7601,1775.0,1774.5,5.63528413]
[1745577833368,0.7601,1775.0,1774.4,17.55040258]
[1745577833527,0.7601,1775.0,1774.5,5.63536773]
[1745577833855,1.69946216,1775.0,1774.5,5.63536773]
[1745577834060,0.7601,1775.0,1774.5,5.63536773]
[1745577834259,1.5225583,1775.0,1774.4,11.91502316]
[1745577834564,0.7601,1775.0,1774.5,5.63516444]
[1745577835662,0.7601,1775.0,1774.6,5.63505483]
[1745577835871,0.7601,1775.0,1774.5,5.63516444]
[1745577836034,0.7601,1775.0,1774.5,6.8266265]
[1745577836964,0.7601,1775.0,1774.5,1.19146206]
[1745577837449,3.7601,1775.0,1774.5,6.82682931]
[1745577837655,4.5225583,1775.0,1774.5,1.19146206]
[1745577837955,4.5225583,1775.0,1774.4,17.55047553]
[1745577838153,4.5225583,1775.0,1774.4,6.27945612]
[1745577838470,4.5225583,1775.0,1774.4,10.71060888]
[1745577840177,4.5225583,1775.0,1774.4,10.71056862]
[1745577840480,4.5225583,1775.0,1774.5,5.63525222]
[1745577840690,4.5225583,1775.0,1774.4,10.71051499]
[1745577841740,3.7601,1775.0,1774.5,5.63527037]
[1745577842098,4.13611,1775.0,1774.5,5.63519846]
[1745577842454,0.7601,1775.0,1774.6,5.63494682]
[1745577842754,0.7601,1775.0,1774.6,5.62550262]
[1745577842961,0.7601,1775.0,1774.6,6.40700262]
[1745577843175,1.21619336,1775.2,1774.7,5.6346547]
[1745577843384,1.21619336,1775.2,1774.6,6.40700262]
[1745577843583,1.21619336,1775.2,1774.6,7.61122235]
[1745577843873,1.21619336,1775.2,1774.6,13.24611257]
[1745577844189,1.21619336,1775.2,1774.7,10.70753407]
[1745577844506,1.21619336,1775.2,1774.7,10.70771861]
[1745577845173,1.21619336,1775.2,1774.9,5.63398389]
[1745577845174,0.41629336,1775.2,1774.9,5.63398389]
[1745577845373,0.29402784,1775.3,1774.9,7.52259547]
[1745577845781,0.7926,1775.4,1774.9,7.52259547]
[1745577846580,0.7926,1775.4,1774.9,1.88861158]
[1745577846767,3.7926,1775.4,1774.9,1.88861158]
[1745577847469,3.7926,1775.4,1774.9,7.5227196]
[1745577847665,0.7926,1775.4,1774.9,7.52255689]
[1745577847842,0.7926,1775.4,1774.9,7.52255022]
[1745577848042,0.7926,1775.4,1775.0,6.38603222]
[1745577848279,1.21012594,1775.4,1775.0,6.38603222]
[1745577849258,1.21012594,1775.4,1775.0,0.75225502]
[1745577849579,1.21012594,1775.4,1774.7,11.45772228]
[1745577849580,3.0,1775.3,1774.7,11.45772228]
[1745577849790,3.0,1775.3,1774.8,5.63441761]
[1745577849995,3.0,1775.3,1774.7,17.09222006]
[1745577850193,1.21012594,1775.4,1774.9,5.6340242]
[1745577850360,1.21012594,1775.4,1775.0,5.63362588]
[1745577850560,1.21012594,1775.4,1774.9,5.63391177]
[1745577850763,1.21012594,1775.4,1775.0,0.56339118]
[1745577851068,1.21012594,1775.4,1775.0,6.94700469]
[1745577851451,1.21012594,1775.4,1775.0,12.58066359]
[1745577851792,1.21012594,1775.4,1775.0,6.94700469]
[1745577855591,1.21012594,1775.4,1775.1,5.63342505]
[1745577855993,1.21012594,1775.4,1775.1,5.63344429]
[1745577856165,1.21012594,1775.4,1775.0,6.94700469]
[1745577856564,1.21012594,1775.4,1775.0,12.58058203]
[1745577857310,1.21012594,1775.4,1775.1,5.63337687]
[1745577857974,1.21012594,1775.4,1775.1,6.89139033]
[1745577858179,0.41752594,1775.4,1775.1,6.89129757]
[1745577858380,0.8076,1775.7,1775.2,5.63316013]
[1745577858608,0.8076,1775.7,1775.1,11.96229757]
[1745577858782,1.29305071,1775.7,1775.1,17.59559348]
[1745577859115,1.29305071,1775.7,1775.1,11.96229757]
[1745577859461,1.29305071,1775.7,1775.2,5.63306737]
[1745577859790,1.58697878,1775.7,1775.2,5.63306737]
[1745577859998,1.58697878,1775.7,1775.2,5.63303024]
[1745577860164,1.58697878,1775.7,1775.2,5.63300672]
[1745577860368,1.58697878,1775.7,1775.1,11.96231075]
[1745577860566,1.58697878,1775.7,1775.2,5.63313434]
[1745577860812,1.58697878,1775.7,1775.2,5.63302568]
[1745577861148,2.00479347,1775.7,1775.2,7.39256793]
[1745577861321,2.00479347,1775.7,1775.2,7.3924937]
[1745577861620,1.51934276,1775.7,1775.2,7.3924937]
[1745577862711,1.51934276,1775.7,1775.2,1.75954225]
[1745577863078,3.7963,1775.6,1775.1,5.071]
[1745577863273,0.7963,1775.5,1775.1,5.071]
[1745577863629,0.7963,1775.5,1775.1,10.70438319]
[1745577865413,0.7963,1775.5,1775.2,5.63304506]
[1745577865621,0.7963,1775.5,1775.2,7.26680469]
[1745577865843,0.7963,1775.5,1775.2,1.63374283]
[1745577866545,1.5587583,1775.5,1775.1,5.071]
[1745577866854,4.5587583,1775.5,1775.1,5.071]
[1745577867016,1.5587583,1775.5,1775.1,5.071]
[1745577870450,0.8308,1775.4,1775.1,5.071]
[1745577871238,0.8308,1775.4,1775.0,5.068]
[1745577871422,0.8308,1775.4,1775.0,10.70174794]
[1745577871633,0.8308,1775.4,1775.0,12.33531491]
[1745577872010,0.8308,1775.4,1775.1,5.63339358]
[1745577872710,0.8308,1775.4,1775.0,12.33519952]
[1745577873040,0.8308,1775.4,1775.0,12.33515976]
[1745577874049,0.8308,1775.4,1775.0,12.33534754]
[1745577874708,0.7624583,1775.5,1774.6,10.70295238]
[1745577874709,0.7686,1775.2,1774.6,10.70295238]
[1745577874912,0.7686,1775.2,1774.7,5.63451467]
[1745577875346,0.7686,1775.2,1774.8,5.63432038]
[1745577875509,0.7686,1775.2,1774.7,5.63451467]
[1745577875824,0.7686,1775.2,1774.9,5.63409898]
[1745577876019,0.7686,1775.2,1774.9,6.8430145]
[1745577876437,1.19161558,1775.2,1774.9,1.20909602]
[1745577876631,1.19161558,1775.2,1774.8,6.45695111]
[1745577876853,1.19161558,1775.2,1774.8,5.63435111]
[1745577877148,1.19161558,1775.2,1774.9,5.634105]
[1745577877314,1.19161558,1775.2,1774.8,5.63435111]
[1745577877515,1.19161558,1775.2,1774.8,11.26851686]
[1745577877714,1.19161558,1775.2,1774.9,1.12685169]
[1745577877956,1.19161558,1775.2,1774.8,5.63422818]
[1745577878113,1.19161558,1775.2,1774.8,5.63422361]
[1745577879015,1.19161558,1775.2,1774.7,5.63454456]
[1745577879218,1.19161558,1775.2,1775.0,5.6336959]
[1745577879535,0.7648,1775.4,1775.0,5.6336959]
[1745577879738,0.7648,1775.4,1775.0,6.83654558]
[1745577879909,0.7648,1775.4,1775.1,5.63344302]
[1745577880115,0.7648,1775.4,1775.0,6.8364682]
[1745577880321,0.7648,1775.4,1775.1,5.6334731]
[1745577880851,0.7648,1775.4,1775.0,6.8364848]
[1745577881160,0.7648,1775.4,1775.1,0.68364848]
[1745577881847,0.7648,1775.4,1775.1,6.31711878]
[1745577882039,0.7648,1775.4,1775.1,0.68364848]
[1745577882344,0.7648,1775.4,1775.1,6.31693055]
[1745577882556,0.7648,1775.4,1775.1,6.31692043]
[1745577882736,0.7648,1775.4,1775.2,0.63169204]
[1745577883252,0.7648,1775.4,1775.1,0.68364848]
[1745577889849,0.7648,1775.4,1775.0,5.069]
[1745577890967,3.0,1775.3,1774.7,5.068]
[1745577891206,0.7991,1775.2,1774.7,10.70265219]
[1745577891372,1.5615583,1775.2,1774.7,10.70265219]
[1745577891670,1.5615583,1775.2,1774.7,10.70269876]
[1745577892044,1.98014545,1775.2,1774.7,10.70269876]
[1745577894465,1.98014545,1775.2,1774.8,1.07026988]
[1745577895785,1.21768715,1775.2,1774.8,1.07026988]
[1745577896083,1.21768715,1775.2,1774.7,10.70268748]
[1745577899565,1.21768715,1775.2,1774.7,5.068]
[1745577899771,0.7639,1775.1,1774.7,10.70271311]
[1745577900782,0.7639,1775.1,1774.7,5.068]
[1745577900983,0.7639,1775.1,1774.7,10.70274663]
[1745577901188,0.7639,1775.1,1774.7,6.70175942]
[1745577901346,0.7639,1775.1,1774.7,12.33641917]
[1745577902096,0.7639,1775.1,1774.7,17.97096532]
[1745577902266,0.7639,1775.1,1774.9,5.6340826]
[1745577902496,0.7639,1775.1,1774.9,5.6340828]
[1745577902685,0.7639,1775.1,1774.9,6.84147632]
[1745577902881,1.09587683,1775.3,1775.0,5.63380281]
[1745577903107,1.09587683,1775.3,1775.0,5.63359121]
[1745577903419,0.8019,1775.3,1775.0,5.63358542]
[1745577903614,0.8019,1775.3,1775.1,0.56335854]
[1745577904319,0.8019,1775.3,1775.1,6.19673083]
[1745577905090,0.8019,1775.3,1775.1,6.19670072]
[1745577905295,0.8007,1775.6,1775.1,6.19670072]
[1745577905520,0.8007,1775.6,1775.1,11.82997979]
[1745577905706,0.8007,1775.6,1775.2,1.18299798]
[1745577906510,0.8007,1775.6,1775.1,6.41027907]
[1745577907188,0.8007,1775.6,1775.1,12.04356879]
[1745577907383,0.8007,1775.6,1775.2,5.63296216]
[1745577907587,0.8007,1775.6,1775.3,5.63279066]
[1745577907830,0.8007,1775.6,1775.3,11.26535297]
[1745577908119,0.8007,1775.6,1775.4,1.1265353]
[1745577908321,0.41781469,1775.7,1775.4,5.63237237]
[1745577908520,0.8153,1775.8,1775.4,5.63237237]
[1745577909536,1.5777583,1775.8,1775.1,11.47538804]
[1745577909691,0.7734,1775.5,1775.1,5.065]
[1745577910029,1.49019572,1775.5,1775.1,10.69847535]
[1745577910214,0.7734,1775.5,1775.1,10.69847535]
[1745577910523,0.7734,1775.5,1775.2,5.63300813]
[1745577910736,0.7734,1775.5,1775.1,10.69833357]
[1745577911239,0.7734,1775.5,1775.2,5.63313249]
[1745577912216,0.7734,1775.5,1775.2,5.63304252]
[1745577913423,0.7734,1775.5,1775.3,5.63282785]
[1745577913922,0.8283,1775.7,1775.5,5.63209502]
[1745577914226,0.8283,1775.7,1775.4,5.63252594]
[1745577914623,1.24428357,1775.8,1775.5,5.63217898]
[1745577914825,0.8283,1775.8,1775.5,6.75862868]
[1745577916036,0.8283,1775.8,1775.5,6.75847871]
[1745577916248,0.8283,1775.8,1775.5,6.75847463]
[1745577916529,0.8283,1775.8,1775.5,5.63202493]
[1745577918336,0.832,1775.9,1775.5,6.40332493]
[1745577918641,0.832,1775.9,1775.5,6.40332646]
[1745577918951,0.832,1775.9,1775.5,6.40329809]
[1745577919854,0.05,1775.9,1775.7,5.63146814]
[1745577920148,0.05,1775.9,1775.8,6.19441159]
[1745577920928,0.05,1775.9,1775.8,0.56314681]
[1745577921293,0.05,1775.9,1775.7,11.26281302]
[1745577921294,1.6175583,1775.9,1775.4,5.63232765]
[1745577921452,0.8551,1775.9,1775.5,5.63205306]
[1745577924264,0.8551,1775.9,1775.6,5.6317856]
[1745577924411,0.8551,1775.9,1775.6,5.63170252]
[1745577924617,0.8551,1775.9,1775.6,11.26334165]
[1745577924855,0.05,1775.9,1775.7,6.75790772]
[1745577925424,0.05,1775.9,1775.7,1.12633416]
[1745577925777,0.05,1775.9,1775.6,5.63166707]
[1745577926228,0.05,1775.9,1775.7,5.6315187]
[1745577926429,0.05,1775.9,1775.6,5.63172912]
[1745577926964,0.05,1775.9,1775.6,5.63167183]
[1745577927126,0.05,1775.9,1775.6,5.63189907]
[1745577927447,0.05,1775.9,1775.7,0.56318991]
[1745577927637,0.05,1775.9,1775.7,6.19474782]
[1745577928788,0.05,1775.9,1775.7,6.19458989]
[1745577928938,0.05,1775.9,1775.7,6.19456229]
[1745577929440,0.05,1775.9,1775.8,5.63126478]
[1745577929641,0.05,1775.9,1775.8,6.81384749]
[1745577929863,0.05,1775.9,1775.8,1.18258271]
[1745577930427,0.05,1775.9,1775.7,11.26275159]
[1745577930663,0.05,1775.9,1775.8,5.63126478]
[1745577931186,0.05,1775.9,1775.8,6.39896478]
[1745577932858,0.05,1775.9,1775.7,5.058]
[1745577936346,0.8213,1775.8,1775.5,5.63199792]
[1745577936684,0.8213,1775.8,1775.5,11.9036158]
[1745577937033,0.05,1775.9,1775.5,11.9036158]
[1745577937034,0.8713,1775.9,1775.7,5.63158191]
[1745577937235,0.8713,1775.9,1775.6,5.63166934]
[1745577937666,0.8713,1775.9,1775.5,6.27161961]
[1745577937876,0.8713,1775.9,1775.6,5.63187958]